Cogmind - Beta 14 @@@ ROGUE MODE // 2024.08.08 @ 21:22:03 Player: Bace Troncons Result: Destroyed by IS-ERG(R) with Subdweller Machine Gun Performance ------------- Evolutions (0) 0 Regions Visited (2) 400 Robots Destroyed (12) 60 Value Destroyed (251) 251 Prototype IDs (2) 40 Alien Tech Used (0) 0 Bonus (0) 0 TOTAL SCORE: 751 Bonus ------- None Cogmind --------- Core Integrity 0/250 Matter 228/300 Energy 125/125 System Corruption 0% Temperature Cool (0) Movement Treading (160) Location -10/Subcaves Parts ------- > --- POWER (1) -------- Light Ion Engine > --- PROPULSION (2) --- Light Treads Light Treads > --- UTILITY (2) ------ Large Storage Unit > --- WEAPON (2) ------- Light Assault Rifle Light Cannon > --- INVENTORY (15) --- Light Nuclear Core Aluminum Leg Aluminum Leg Structural Scanner Targeting Computer Light Assault Rifle Light Assault Rifle Datajack Mining Claw Peak State ------------ > --- POWER ------------ Ion Engine > --- PROPULSION ------- Light Treads Light Treads > --- UTILITY ---------- Small Storage Unit > --- WEAPON ----------- Light Assault Rifle Light Assault Rifle > --- INVENTORY -------- Light Ion Engine Light Nuclear Core Light Treads Aluminum Leg Aluminum Leg Targeting Computer Light Cannon Datajack [Rating: 7] Favorites ----------- Power Light Ion Engine Engine Light Ion Engine Propulsion Light Treads Treads Light Treads Utility Large Storage Unit Storage Large Storage Unit Weapon Light Assault Rifle Ballistic Gun Light Assault Rifle Ballistic Cannon Light Cannon Build | -11 -10 -10 ------- Run | Yrd Mat Sub Slots Evolved . | . . . Power . | . . . Propulsion . | . . . Utility . | . . . Weapon . | . . . Parts Attached 15 | 4 10 1 Power 3 | 1 2 . Engine 3 | 1 2 . Core . | . . . Reactor . | . . . Propulsion 4 | 1 3 . Treads 4 | 1 3 . Leg . | . . . Wheel . | . . . Hover . | . . . Flight . | . . . Utility 3 | 1 2 . Device . | . . . Storage 3 | 1 2 . Processor . | . . . Hackware . | . . . Protection . | . . . Artifact . | . . . Weapon 5 | 1 3 1 Energy Gun . | . . . Energy Cannon . | . . . Ballistic Gun 4 | 1 3 . Ballistic Cannon 1 | . . 1 Launcher . | . . . Special Weapon . | . . . Impact Weapon . | . . . Slashing Weapon . | . . . Piercing Weapon . | . . . Special Melee Weapon . | . . . Unidentified Prototypes . | . . . Parts Lost 1 | . 1 . Power . | . . . Propulsion 1 | . 1 . Utility . | . . . Weapon . | . . . Highest Loss Streak 1 | . 1 . To Critical Strikes . | . . . Average Slot Usage (%) 82 | . 81 85 Engine 14 | . 14 14 Treads 27 | . 27 28 Storage 14 | . 14 14 Ballistic Gun 23 | . 25 14 Ballistic Cannon 2 | . . 13 Peak Build Rating 7 | 4 7 7 Average Rating 6 | 3 6 7 On Entrance 3 | . 4 7 Naked Turns . | . . . Heaviest Build 27 | 11 25 27 Greatest Support 40 | 20 40 40 Greatest Overweight (x) . | . . . Average Overweight (x) . | . . . Largest Inventory Capacity 15 | 8 15 15 Average Capacity 13 | 7 12 15 Most Carried 9 | 4 9 9 Average Carried 7 | 2 7 9 Final Capacity 15 | 8 15 15 Final Carried 9 | 4 9 9 Class Distribution -------------------- 100% | Mutant Dominant Class ---------------- Mutant | -10/Materials Mutant | -10/Subcaves Resources | -11 -10 -10 ----------- Run | Yrd Mat Sub Matter Collected 401 | 213 188 . Remotely . | . . . Salvage Created 333 | . 317 16 Parts 22 | . 20 2 Haulers Intercepted 1 | . 1 . Recyclers Shooed . | . . . Parts Field Recycled . | . . . Retrieved Matter . | . . . Parts Self-Destructed . | . . . Prevented . | . . . Kills | -11 -10 -10 ------- Run | Yrd Mat Sub Combat Hostiles Destroyed 11 | . 10 1 Guns 10 | . 10 . Cannons 1 | . . 1 Classes Destroyed 4 | . 3 1 Hauler 1 | . 1 . Swarmer 6 | . 6 . Grunt 4 | . 4 . Subdweller 1 | . . 1 Best Kill Streak 3 | . 3 1 Combat Bots Only 3 | . 3 1 Max Kills in Single Turn 1 | . 1 1 Gunslinging . | . . . Exploded . | . . . Melee . | . . . Uniques/NPCs Destroyed . | . . . Combat | -11 -10 -10 -------- Run | Yrd Mat Sub Hostile Shots Fired 101 | . 87 14 Missed 25 | . 20 5 Damage Taken 850 | . 674 176 Core 258 | . 181 77 Absorbed by Shields . | . . . Regen/Repaired (Parts) 200 | . 200 . Core Remaining (%) 100 | 100 . . Volleys Fired 71 | . 65 6 Largest 2 | . 2 2 Hottest 55 | . 40 55 Shots Fired 110 | . 98 12 Gun 104 | . 98 6 Cannon 6 | . . 6 Launcher . | . . . Special . | . . . Kinetic 110 | . 98 12 Thermal . | . . . Explosive . | . . . Electromagnetic . | . . . Robot Hit Streak 9 | . 7 9 Robot Miss Streak 5 | . 5 1 Penetration Max . | . . . Secondary Targets . | . . . Shots Hit Robots 70 | . 60 10 Core Hits 26 | . 23 3 Critical Kills . | . . . Critical Parts Destroyed 1 | . 1 . Critical Strikes 1 | . 1 . Destroy 1 | . 1 . Melee Attacks . | . . . Impact . | . . . Slashing . | . . . Piercing . | . . . Sneak Attacks . | . . . Combat Hostiles . | . . . Follow-up Attacks . | . . . Damage Inflicted 633 | . 516 117 Guns 561 | . 516 45 Cannons 72 | . . 72 Explosions . | . . . Melee . | . . . Ramming . | . . . Kinetic 633 | . 516 117 Thermal . | . . . Explosive . | . . . Electromagnetic . | . . . Impact . | . . . Slashing . | . . . Piercing . | . . . Highest Corruption . | . . . Average Corruption . | . . . Corruption Purged . | . . . Corruption Blocked . | . . . Overload Shots . | . . . Overflow Damage . | . . . Projectiles . | . . . Explosions . | . . . Melee . | . . . Knockbacks 1 | . . 1 Impact . | . . . Kinetic 1 | . . 1 Secondary . | . . . Self-Inflicted Damage . | . . . Shots . | . . . Rammed . | . . . Targets Rammed . | . . . Kicked . | . . . Crushed . | . . . Highest Temperature 33 | . 33 . Average Temperature 11 | . 11 . Received Heat Transfer 210 | . 210 . Siege Activations . | . . . Robots Corrupted . | . . . Combat Hostiles . | . . . Parts Fried . | . . . Impact Corruptions . | . . . Robots Melted . | . . . Combat Hostiles . | . . . Parts Melted . | . . . Heat Transferred . | . . . Parts Sabotaged . | . . . Parts Stolen . | . . . Parts Stripped . | . . . Power Chain Reactions . | . . . Alert | -11 -10 -10 ------- Run | Yrd Mat Sub Peak Influence 187 | . 187 . Initial . | . . . Average 38 | . 40 . Maximum Alert Level . | . . . Low Security (%) 100 | 100 100 . Level 1 . | . . . Level 2 . | . . . Level 3 . | . . . Level 4 . | . . . Level 5 . | . . . High Security . | . . . Max Security . | . . . Squads Dispatched 1 | . 1 . Investigation . | . . . Extermination . | . . . Reinforcement 1 | . 1 . Assault . | . . . Garrison . | . . . Intercept . | . . . Searches Triggered . | . . . Construction Impeded . | . . . Haulers Reinforced . | . . . Active Scanning Responses . | . . . Cargo Convoy Interrupts . | . . . Stealth | -11 -10 -10 --------- Run | Yrd Mat Sub Distress Signals . | . . . Communications Jammed . | . . . Distress Signals . | . . . Times Spotted 18 | . 16 2 Peak Tracking Total 5 | . 5 2 Tactical Retreats . | . . . Traps | -11 -10 -10 ------- Run | Yrd Mat Sub Traps Triggered . | . . . Indirectly . | . . . Trap Hack Attempts . | . . . Triggered . | . . . Disarmed . | . . . Reprogrammed . | . . . Reused . | . . . Traps Extracted . | . . . Installed . | . . . Triggered . | . . . Machines | -11 -10 -10 ---------- Run | Yrd Mat Sub Machines Disabled . | . . . Max in Single Turn . | . . . Machines Repaired . | . . . Machines Dismantled . | . . . Machines Sabotaged . | . . . Overloaded Fab Kills . | . . . Hacking | -11 -10 -10 --------- Run | Yrd Mat Sub Machines Accessed 5 | . 5 . Terminals 3 | . 3 . Fabricators . | . . . Repair Stations 1 | . 1 . Recycling Units 1 | . 1 . Scanalyzers . | . . . Garrison Access . | . . . Total Hacks 18 | . 18 . Successful 12 | . 12 . Failed 6 | . 6 . Catastrophic . | . . . Database Lockouts . | . . . Manual . | . . . Terminals 12 | . 12 . Fabricators . | . . . Repair Stations 5 | . 5 . Recycling Units 1 | . 1 . Scanalyzers . | . . . Garrison Access . | . . . Terminal Hacks 7 | . 7 . Robot Analysis 2 | . 2 . Prototype ID Bank 1 | . 1 . Dispatch Records 1 | . 1 . Maintenance Status 1 | . 1 . Hauler Manifests 1 | . 1 . Zone Layout 1 | . 1 . Fabricator Hacks . | . . . Repair Station Hacks 4 | . 4 . Scan Component 2 | . 2 . Repair 2 | . 2 . Recycling Unit Hacks 1 | . 1 . Retrieve Components 1 | . 1 . Scanalyzer . | . . . Garrison Access Hacks . | . . . Unauthorized Hacks . | . . . Terminals . | . . . Fabricators . | . . . Repair Stations . | . . . Recycling Units . | . . . Scanalyzers . | . . . Garrison Access . | . . . Data Cores Recovered . | . . . Used . | . . . Hacking Detections 2 | . 2 . Full Trace Events . | . . . Feedback Events . | . . . Feedback Blocked . | . . . Robot Schematics Acquired . | . . . Robots Built . | . . . Authchips . | . . . Time . | . . . Total Robot Build Rating . | . . . Part Schematics Acquired . | . . . Parts Built . | . . . Authchips . | . . . Time . | . . . Total Part Build Rating . | . . . Parts Repaired 2 | . 2 . Time 52 | . 52 . Parts Recycled . | . . . Recycled Matter . | . . . Retrieved Matter . | . . . Retrieved Components 10 | . 10 . Parts Scanalyzed . | . . . Part Schematics Acquired . | . . . Parts Damaged . | . . . Bothacking | -11 -10 -10 ------------ Run | Yrd Mat Sub Used RIF Installer . | . . . Robots Hacked . | . . . Non-combat . | . . . Combat . | . . . Robot Hacks Applied . | . . . Relay Couplers Released . | . . . Fabnet Peak Effective % . | . . . Robots Rewired . | . . . Allies Hacked . | . . . Hacks Repelled . | . . . Allies | -11 -10 -10 -------- Run | Yrd Mat Sub Total Allies . | . . . Largest Group . | . . . Highest-Rated Group . | . . . Highest-Rated Ally . | . . . Total Orders . | . . . Ally Attacks . | . . . Total Damage . | . . . Kills . | . . . Allies Corrupted . | . . . Allies Melted . | . . . Intel | -11 -10 -10 ------- Run | Yrd Mat Sub Robot Analysis Total 2 | . 2 . Derelict Logs Recovered 1 | . . 1 Drone Launches . | . . . Drone Recoveries . | . . . Exploration | -11 -10 -10 ------------- Run | Yrd Mat Sub Turns Passed 2050 | 61 1627 362 Spaces Moved 665 | 34 416 215 Core 2 | 2 . . Treads 663 | 32 416 215 Legs . | . . . Wheels . | . . . Hover . | . . . Flight . | . . . Fastest Speed 50 | 50 160 160 Average Speed 159 | 153 160 160 Slowest Speed 160 | 160 160 160 Overloaded Moves . | . . . Propulsion Burnouts . | . . . Robots Hopped . | . . . Cave-ins Triggered . | . . . Exploration Rate (%) 30 | 4 73 15 Regions Visited 2 Branch Regions 1 Pre-discovered Areas 1 | . . 1 Known Exits Taken . | . . . Unknown Exits Taken 2 | 1 1 . Scrap Searched . | . . . Spaces Dug . | . . . Terrain Destroyed . | . . . Melee . | . . . Projectile . | . . . AOE . | . . . Terrain Rammed . | . . . Walls Destroyed . | . . . Machines Disabled . | . . . Actions | -11 -10 -10 --------- Run | Yrd Mat Sub Total 1562 | 41 1299 222 Wait 794 | . 794 . Move 663 | 33 415 215 Hop . | . . . Pick Up 12 | 4 8 . Fast Attach 10 | 4 6 . Attach 3 | . 3 . Detach 2 | . 2 . Swap 2 | . 1 1 Drop 5 | . 5 . Fire 71 | . 65 6 Melee . | . . . Ram . | . . . Kick . | . . . Crush . | . . . Escape Stasis . | . . . Rewire . | . . . Trap . | . . . Miscellaneous . | . . . Route ------- -11/Scrapyard -10/Materials (discovered 5 exits: [*Mat x2] / [*Min x2] / [*Sub]) -10/Subcaves History --------- Turn | Location | Event 21 | -11/Scrapyard | Discovered new exit (range 15) 62 | -11/Scrapyard | Entered Materials 160 | -10/Materials | Discovered new exit (range 12) 299 | -10/Materials | Discovered new exit (range 6) 311 | -10/Materials | Build established: Mutant 378 | -10/Materials | Core integrity fell below 50% 569 | -10/Materials | Discovered new exit (range 8) 757 | -10/Materials | Repaired Lgt. Assault Rifle 788 | -10/Materials | Repaired Lgt. Treads 809 | -10/Materials | Discovered new exit (range 5) 1658 | -10/Materials | Discovered new exit (range 10) 1689 | -10/Materials | Entered Subcaves 1953 | -10/Subcaves | A swath of the cavern ceiling suddenly collapsed 2022 | -10/Subcaves | Ambushed by Subdwellers from Twisted Machinery 2045 | -10/Subcaves | Core integrity fell below 20% 2051 | -10/Subcaves | Destroyed by IS-ERG(R) with Subdweller Machine Gun Last Messages --------------- 01559_ U-05 Engineer builds a Wall. 01563_ U-05 Engineer builds a Door. 01601_ T-07 Excavator is excavating. 01611_ U-05 Engineer lays Concrete. 01651_ T-07 Excavator is excavating. 01658_ EXIT=FOUND 01662_ T-07 Excavator is excavating. 01665_ U-05 Engineer lays Concrete. 01669_ U-05 Engineer builds a Wall. LOCATION=UNKNOWN AMBIENT_HEAT=-10 GOAL=ESCAPE 01701_ Acquired derelict log, extracted data. World map updated: -9/Materials. A swath of the cavern ceiling suddenly collapses. 02022_ IS-ERG(R) emerges from the Twisted Machinery. 02043_ BG-C7Q(R) knocked back. 02046_ BG-C7Q(R) destroyed. Map ----- +----------------------------------------------------+ | ????????????# #???# ## ##?????????? | | ????????????# ###?#### ### #########?? | | ????????????# ### #????## ### ## #?? | | ????????????# #### ##????## ### ##? | | ????????????# ### ##????# ### ## | | ????????????# ## #????## ### # | | ????????????# #?????## ## ### # | | ????????????# ##??????#### ### # | | ????????????## ###???###???## ## | | ????????????## #????## ##?## ###### | | ????????????# # #???## #?# #####?## | | ????????????# ## ###### ### #### #### | | ????????????## ### ## ## ### | | ?????????????####### | | ??????????????????# ## | | ??????????????????###### ### | | ???????????????????????## ##?# ## | | ??????????????????????## #??####### | | ??????????????????????# #???????# ## | | ??????????????????????# #???????# ##? | | ??????????????????????# ###???"""#####?? | | ?????????????# ???????# """"??""#??????? | | ????????????## ##### %! " """""??""???????? | | ????????????# =% ###" ###"???????????? | | ????????????# R[##?# #??????????????? | | ????????????# @#??## $##??????????????? | | ????????????# ## #???# #??????????????? | | ????????????## ???## #???# ##??????????????? | | ????????????????????## #??? " #???????????????? | | ?????????????????????# ##???"" ???????????????? | | ?????????????????????# ?????# ???????????????? | | ?????????????????????# ??????? ???????????????? | | ????????????????????? ???????# ???????????????? | | ???????????????????? ???????? ??????????????? | | ???????????????????? ????????????????????????? | | ??????????????????? # ????????????????????????? | | ??????????????????? #????????????????????????? | | ??????????????????## ?????????????????????????? | | ???????????????????### ?????????????????????????? | | ?????????????????????#? ?????????????????????????? | | ?????????????????????????????????????????????????? | | ?????????????????????????????????????????????????? | | ?????????????????????????????????????????????????? | | ?????????????????????????????????????????????????? | | ?????????????????????????????????????????????????? | | ?????????????????????????????????????????????????? | | ?????????????????????????????????????????????????? | | ?????????????????????????????????????????????????? | | ?????????????????????????????????????????????????? | | ?????????????????????????????????????????????????? | +----------------------------------------------------+ Best States ------------- Heat Dissipation 25 Energy Generation 10 Energy Capacity 250 Matter Stores 300 Matter Capacity 300 Sight Range 16 Terrain Scan Density 10 Evasion (%) 40 Recoil Reduction 2 Item Schematics ----------------- None Robot Schematics ------------------ None Fabricated ------------ Nothing Alien Tech Used ----------------- None Achievements -------------- None Challenges ------------ None Game ------ Seed MultitargetingAerolevMaul Manual? 0 Play Time 00:11:07 Cumulative 101.0 hours Start 2024.08.08 @ 21:11:54 End 2024.08.08 @ 21:22:03 Sessions 1 Manual Loads 0 Difficulty Rogue Special Mode None Game No. 174 Rogue 174 Adventurer 0 Explorer 0 Win Type - Total 1 Types 1/0/0/0/0/0/0/0/0 Lore% 27 Gallery% 45 Achievement% 34 Wizard Run 0 Options --------- Layout 1 ASCII 0 Keyboard 1 Movement Numpad Keybinds 0 Fullscreen 1 Font 24/Smallcaps Map View 50x35 Zoom Use 0% Tactical HUD 1 Map Filters NONE Filters NONE Steam 1 RUN: 375e23a1-f579-4a49-9f07-aef81c20d6de